Cogmind - Beta 13 @@@ ROGUE MODE // 2024.03.22 @ 13:11:40 Player: darki Result: Destroyed by D-63 Destroyer with Heavy Rocket Launcher Performance ------------- Evolutions (6) 3000 Regions Visited (19) 3800 Robots Destroyed (168) 840 Value Destroyed (7886) 7886 Prototype IDs (45) 900 Alien Tech Used (2) 400 Bonus (1613) 1613 TOTAL SCORE: 18439 Bonus ------- Follower Combat Kills 552 Entered DSFs 500 Met Zhirov 300 Met Warlord at Base 500 MAIN.C Attacked Warlord 500 Warlord Defense Kills 402 Friendly Fire -1141 Cogmind --------- Core Integrity 0/1150 Matter 225/300 Energy 72/100 System Corruption 0% Temperature Cool (34) Movement Walking (114) Location -4/Warlord Parts ------- > --- POWER (2) -------- Backup Power III Backup Power III > --- PROPULSION (7) --- FC-Myomer Exoskeleton > --- UTILITY (8) ------ Improved Heat Sink Experimental Signal Interpreter Advanced Launcher Guidance Computer Advanced Launcher Guidance Computer Improved Target Analyzer Armor Integrity Analyzer Minesniffer Drone Bay (6/10) Minesniffer Drone Bay (6/10) > --- WEAPON (2) ------- Vortex Driver Vortex Driver > --- INVENTORY (5) ---- Chain Missile Launcher Makeshift Sword Peak State ------------ > --- POWER ------------ Meta Core Antimatter-Neutrino Reactor > --- PROPULSION ------- FC-Myomer Exoskeleton > --- UTILITY ---------- Armored Scrap Engine Advanced Cooling System Experimental Signal Interpreter Makeshift Salvage Targeting Computer Improved Target Analyzer Armor Integrity Analyzer Particle Accelerator > --- WEAPON ----------- Electro Gauss Construct/C Hyp. Ballistic Coil Construct/G > --- INVENTORY -------- Transdimensional Reconstructor Micro-nuke Launcher Plasma Cutter Multitool Phasing Sabre [Rating: 118] Favorites ----------- Power Constructs Engine Makeshift Power Source Power Core Meta Core Reactor Constructs Propulsion Constructs Treads Light Treads Leg Constructs Utility Armored Scrap Engine Device Armored Scrap Engine Storage Large Storage Unit Processor Makeshift Salvage Targeting Computer Protection Makeshift Light Armor Plating Weapon Constructs Energy Gun Particle Gun Energy Cannon Constructs Ballistic Gun Constructs Ballistic Cannon Light Cannon Launcher EMP Blaster Special Weapon Multitool Slashing Weapon Makeshift Sword Build | -11 -10 -10 -9 -7 -7 -7 -7 -7 -6 -6 -5 -5 -5 -5 -4 -4 -4 -4 -4 ------- Run | Yrd Mat Sub Rec Fac Was Fac Low Low Fac DSF Fac Upp Upp Zhi Pro Fac Upp Upp War Slots Evolved 12 | . . . . 6 . . . . 2 . 2 . . . . 2 . . . Power 1 | . . . . . . . . . 1 . . . . . . . . . . Propulsion 5 | . . . . 3 . . . . 1 . 1 . . . . . . . . Utility 6 | . . . . 3 . . . . . . 1 . . . . 2 . . . Weapon . | . . . . . . . . . . . . . . . . . . . . Parts Attached 96 | . 11 21 1 9 . 6 2 4 . . 6 . 1 2 1 4 9 8 11 Power 6 | . 2 2 . . . . . 1 . . 1 . . . . . . . . Engine 5 | . 2 2 . . . . . 1 . . . . . . . . . . . Core 1 | . . . . . . . . . . . 1 . . . . . . . . Reactor . | . . . . . . . . . . . . . . . . . . . . Propulsion 4 | . . 4 . . . . . . . . . . . . . . . . . Treads 3 | . . 3 . . . . . . . . . . . . . . . . . Leg 1 | . . 1 . . . . . . . . . . . . . . . . . Wheel . | . . . . . . . . . . . . . . . . . . . . Hover . | . . . . . . . . . . . . . . . . . . . . Flight . | . . . . . . . . . . . . . . . . . . . . Utility 51 | . 3 5 1 7 . 5 1 2 . . 5 . 1 2 1 4 5 3 6 Device 25 | . 1 1 1 4 . 4 1 . . . 1 . 1 1 1 1 3 1 4 Storage 3 | . 1 . . . . . . . . . . . . 1 . . . 1 . Processor 18 | . . . . 3 . 1 . 2 . . 4 . . . . 3 2 1 2 Hackware . | . . . . . . . . . . . . . . . . . . . . Protection 5 | . 1 4 . . . . . . . . . . . . . . . . . Artifact . | . . . . . . . . . . . . . . . . . . . . Weapon 35 | . 6 10 . 2 . 1 1 1 . . . . . . . . 4 5 5 Energy Gun 1 | . . 1 . . . . . . . . . . . . . . . . . Energy Cannon 5 | . . 1 . . . . . . . . . . . . . . . . 4 Ballistic Gun 7 | . 3 4 . . . . . . . . . . . . . . . . . Ballistic Cannon 3 | . . 3 . . . . . . . . . . . . . . . . . Launcher 11 | . 3 1 . 2 . 1 . 1 . . . . . . . . 2 . 1 Special Weapon 1 | . . . . . . . 1 . . . . . . . . . . . . Impact Weapon . | . . . . . . . . . . . . . . . . . . . . Slashing Weapon 7 | . . . . . . . . . . . . . . . . . 2 5 . Piercing Weapon . | . . . . . . . . . . . . . . . . . . . . Special Melee Weapon . | . . . . . . . . . . . . . . . . . . . . Unidentified Prototypes 9 | . . 1 . . . . . . . . . . . 3 . 1 . 1 3 Parts Lost 48 | . . 3 . 8 . 1 2 4 . . 2 2 2 . 1 3 10 8 2 Power 10 | . . 1 . 1 . . 1 1 . . . 1 . . 1 . 2 2 . Propulsion 7 | . . 1 . 1 . . . 2 . . . . . . . . 1 2 . Utility 16 | . . 1 . 3 . 1 . . . . 1 1 1 . . . 5 2 1 Weapon 15 | . . . . 3 . . 1 1 . . 1 . 1 . . 3 2 2 1 Highest Loss Streak 4 | . . 3 . 3 . 1 1 4 . . 1 1 2 . 1 1 4 3 2 To Critical Strikes . | . . . . . . . . . . . . . . . . . . . . Average Slot Usage (%) 66 | . 98 86 87 50 53 58 57 52 46 46 57 57 54 53 56 54 45 44 58 Engine 6 | . 14 9 14 5 7 2 . . 6 6 5 3 5 5 . . . . 8 Core 2 | . . . . 1 . 3 6 5 . . 5 6 5 5 5 4 2 . . Treads 8 | . . 26 28 1 . . . . . . . 2 5 5 5 1 . 2 . Leg 4 | . 28 1 . . 2 . 4 3 . . . . . . . 1 3 2 5 Device 12 | . 11 11 13 10 15 20 15 10 6 6 9 6 9 11 15 13 8 7 18 Storage 1 | . 14 1 . . . . . . . . . . . . . . . . . Processor 8 | . . . . 7 7 7 15 19 20 20 18 20 12 10 10 13 20 15 15 Protection 1 | . 1 7 2 . . . . . . . . . . . . . . . . Energy Gun 3 | . 1 1 2 4 8 7 1 . . . 2 5 8 10 12 3 . . 1 Energy Cannon 3 | . . 8 11 . 3 . 3 . . . . . . . . 3 . . 6 Ballistic Gun 6 | . 15 13 8 5 2 5 6 7 6 6 2 1 4 5 2 2 . . . Ballistic Cannon 2 | . . 4 5 2 . . . . . . 9 8 2 . . . 1 . . Launcher 1 | . 10 . . . . . . . . . . . . . . . 2 . . Naked Turns . | . . . . . . . . . . . . . . . . . . . . Heaviest Build 77 | 11 36 36 21 20 19 22 18 14 14 14 40 40 40 36 36 41 33 20 77 Greatest Support 168 | 20 20 40 40 46 93 100 73 101 49 49 89 103 141 114 165 168 110 98 79 Greatest Overweight (x) 4 | . 1 1 . 2 . . . 4 4 . 1 . . . . . 1 . . Average Overweight (x) . | . . . . . . . . . 3 . . . . . . . . . . Largest Inventory Capacity 15 | . 15 15 5 5 5 5 5 5 5 5 5 5 5 5 5 5 5 5 5 Average Capacity 5 | . 12 5 5 5 5 5 5 5 5 5 5 5 5 5 5 5 5 5 5 Most Carried 15 | . 15 15 5 5 5 5 5 5 4 4 4 5 5 5 5 5 5 5 5 Average Carried 5 | . 12 5 3 4 5 4 4 4 4 4 3 4 4 4 5 4 3 2 3 Final Capacity 15 | 8 15 5 5 5 5 5 5 5 5 5 5 5 5 5 5 5 5 5 5 Final Carried 15 | 6 15 5 4 5 5 5 5 4 4 4 4 5 5 5 5 5 3 2 3 Scrap Engine Consumption 377 | . . . 25 90 3 58 14 13 . 27 31 9 29 1 10 34 17 16 . Constructs Created 22 | . . . 2 7 . 1 1 . . . 3 1 1 . 1 1 2 1 1 Constructs Modified 115 | . . . 3 19 7 12 15 3 . . 16 6 10 . 3 11 4 6 . Class Distribution -------------------- 43% | Mutant 43% | Construct 7% | Derelict-Mutant 5% | Gunner Dominant Class ---------------- Mutant | -10/Materials Mutant | -10/Subcaves Construct | -9/Recycling Construct | -7/Factory Construct | -7/Waste Construct | -7/Factory Construct | -7/Lower Caves Construct | -7/Lower Caves Mutant | -6/Factory Mutant | -6/DSF Gunner | -5/Factory Construct | -5/Upper Caves Construct | -5/Upper Caves Construct | -5/Zhirov Construct | -4/Proximity Caves Construct | -4/Factory Mutant | -4/Upper Caves Mutant | -4/Upper Caves Mutant | -4/Warlord Resources | -11 -10 -10 -9 -7 -7 -7 -7 -7 -6 -6 -5 -5 -5 -5 -4 -4 -4 -4 -4 ----------- Run | Yrd Mat Sub Rec Fac Was Fac Low Low Fac DSF Fac Upp Upp Zhi Pro Fac Upp Upp War Matter Collected 5873 | 170 1005 455 67 315 . 285 197 334 . . 458 586 675 . 260 454 321 150 141 Remotely 286 | . . . . . . 155 131 . . . . . . . . . . . . Salvage Created 8000 | . 520 102 297 1055 . 638 285 474 . . 324 325 1011 . 245 782 984 769 189 Parts 328 | . 44 5 13 68 . 41 10 13 . . 19 7 23 . 4 17 27 35 2 Haulers Intercepted 4 | . 2 . . 1 . . . . . . . . . . . . 1 . . Recyclers Shooed 2 | . . . 1 . . 1 . . . . . . . . . . . . . Parts Field Recycled . | . . . . . . . . . . . . . . . . . . . . Retrieved Matter . | . . . . . . . . . . . . . . . . . . . . Parts Self-Destructed 103 | . . 23 . . . . 1 10 . . . . 27 . 5 . 16 21 . Prevented 17 | . . . . . . . 2 . . . . 2 11 . 1 . . 1 . Kills | -11 -10 -10 -9 -7 -7 -7 -7 -7 -6 -6 -5 -5 -5 -5 -4 -4 -4 -4 -4 ------- Run | Yrd Mat Sub Rec Fac Was Fac Low Low Fac DSF Fac Upp Upp Zhi Pro Fac Upp Upp War Combat Hostiles Destroyed 133 | . 9 3 . 18 . 11 4 11 . . 7 5 18 . 3 12 17 11 4 Melee 19 | . . . . . . . . . . . . . . . . . 10 9 . Guns 57 | . 7 2 . 7 . 7 1 1 . . . 2 15 . 3 8 2 2 . Cannons 19 | . . 1 . 4 . . 3 . . . 6 3 2 . . . . . . AOE 31 | . 2 . . 6 . 4 . 9 . . . . . . . 1 5 . 4 Classes Destroyed 23 | . 6 2 2 4 . 1 1 4 . . . 1 . . . . . . 2 Worker 5 | . 1 . . 2 . . . . . . 2 . . . . . . . . Builder 1 | . . . 1 . . . . . . . . . . . . . . . . Tunneler 2 | . . . . 2 . . . . . . . . . . . . . . . Hauler 4 | . 2 . . 1 . . . . . . . . . . . . 1 . . Recycler 6 | . . . 3 2 . 1 . . . . . . . . . . . . . Mechanic 1 | . . . . . . . . 1 . . . . . . . . . . . Operator 7 | . 2 . . 1 . 1 . . . . 2 . . . . 1 . . . Watcher 6 | . 3 . . 1 . 1 . . . . . . . . . 1 . . . Swarmer 23 | . 3 . . 5 . 4 . . . . . . 4 . . . . 5 2 Grunt 45 | . 6 . . 2 . 4 3 5 . . . . 7 . 2 6 9 . 1 Brawler 9 | . . . . . . . . 2 . . . 1 2 . . . 3 . 1 Duelist 9 | . . . . . . . . 3 . . . 1 3 . . 1 1 . . Sentry 15 | . . . . 4 . 1 1 1 . . 2 1 2 . . 1 2 . . Specialist 2 | . . . . . . 2 . . . . . . . . . . . . . Hunter 12 | . . . . 2 . . . . . . 4 1 . . 1 . 2 2 . Programmer 14 | . . . . 5 . . . . . . 1 . . . . 4 . 4 . Behemoth 1 | . . . . . . . . . . . . 1 . . . . . . . Artisan 1 | . . 1 . . . . . . . . . . . . . . . . . Subdweller 4 | . . 3 1 . . . . . . . . . . . . . . . . Decomposer 1 | . . . . . . . . . . . . 1 . . . . . . . Packrat 2 | . . . . . . . . . . . . 1 1 . . . . . . Samaritan 3 | . . . . . . . . 1 . . . . 1 . . . . 1 . Tinkerer 1 | . . . . . . . 1 . . . . . . . . . . . . Mutant 1 | . . . . . . . . . . . . . . . . . . . 1 Knight 1 | . . . . . . . . . . . . . . . . . . . 1 Best Kill Streak 10 | . 3 2 2 7 . 6 2 10 . . 2 3 7 . 2 4 8 4 3 Combat Bots Only 9 | . 3 2 . 4 . 4 2 9 . . 2 3 7 . 2 4 8 4 3 Max Kills in Single Turn 6 | . 2 1 1 6 . 3 1 2 . . 1 1 2 . 1 1 2 2 5 Gunslinging 1 | . . . . . . . . . . . . . 1 . . . . . . Exploded 3 | . 2 . . 3 . 2 . 2 . . . . . . . 1 2 . 3 Melee 2 | . . . . . . . . . . . . . . . . . 1 2 . Uniques/NPCs Destroyed . | . . . . . . . . . . . . . . . . . . . . Combat | -11 -10 -10 -9 -7 -7 -7 -7 -7 -6 -6 -5 -5 -5 -5 -4 -4 -4 -4 -4 -------- Run | Yrd Mat Sub Rec Fac Was Fac Low Low Fac DSF Fac Upp Upp Zhi Pro Fac Upp Upp War Hostile Shots Fired 1421 | . 22 49 1 257 . 116 74 165 . 6 100 33 62 . 28 118 150 224 16 Missed 469 | . 8 13 1 105 . 44 14 61 . 5 32 18 17 . 9 34 43 63 2 Damage Taken 17127 | . 228 753 . 1683 . 836 697 1978 . 88 1125 453 1136 . 375 1938 2558 2592 687 Core 2402 | . 43 110 . 215 . 139 91 230 . 9 176 184 16 . 38 166 332 491 162 Absorbed by Shields 234 | . . . . 106 . 71 . . . . . . . . . . 57 . . Regen/Repaired (Parts) 6650 | . . . . 747 147 381 338 611 . . 929 97 970 100 286 932 780 315 17 Core Remaining (%) 59 | 100 . . 38 . . . . 3 . 98 . . . . 58 . . . . Volleys Fired 482 | . 46 48 14 76 . 25 36 27 . . 41 20 38 . 16 56 22 14 3 Largest 3 | . 2 2 2 2 . 2 2 2 . . 3 3 3 . 3 3 2 1 2 Hottest 200 | . 66 95 110 106 . 99 124 59 . . 155 155 155 . 131 131 126 44 200 Shots Fired 881 | . 90 72 30 128 . 44 54 29 . . 90 52 104 . 47 99 25 13 4 Gun 562 | . 83 36 15 76 . 40 19 16 . . 22 20 85 . 47 77 13 13 . Cannon 262 | . . 36 15 48 . . 18 . . . 68 32 19 . . 22 2 . 2 Launcher 40 | . 7 . . 4 . 4 . 13 . . . . . . . . 10 . 2 Special 17 | . . . . . . . 17 . . . . . . . . . . . . Kinetic 420 | . 83 43 15 60 . 10 7 . . . 78 32 53 . 13 11 15 . . Thermal 195 | . . 29 15 11 . . 37 16 . . 2 . . . 19 66 . . . Explosive 31 | . . . . 2 . 4 . 13 . . . . . . . . 10 . 2 Electromagnetic 233 | . 7 . . 55 . 30 10 . . . 10 20 51 . 15 22 . 13 . Entropic 2 | . . . . . . . . . . . . . . . . . . . 2 Robot Hit Streak 26 | . 7 19 6 19 . 17 26 23 . . 10 13 17 . 10 15 3 6 9 Robot Miss Streak 7 | . 3 4 2 2 . 5 4 3 . . 7 2 2 . 2 3 3 3 2 Penetration Max . | . . . . . . . . . . . . . . . . . . . . Secondary Targets 5 | . . . . . . 1 . . . . . . 2 . . 2 . . . Max Gunslinging Chain 1 | . . . . . . 1 . . . . . . 1 . . 1 . . . Shots Hit Robots 661 | . 56 34 17 98 . 34 47 21 . . 50 42 76 . 30 65 56 33 2 Core Hits 404 | . 24 7 5 69 . 52 18 42 . . 20 16 40 . 8 23 37 16 27 Critical Kills 1 | . . . . . . . . . . . . . . . . . . 1 . Critical Parts Destroyed 5 | . . . . . . . . . . . . . . . 1 . 1 3 . Critical Strikes 25 | . . 1 . 2 . . . . . . 3 1 2 . 1 1 9 5 . Burn 2 | . . 1 . . . . . . . . . . . . . 1 . . . Destroy 6 | . . . . . . . . . . . . . . . 1 . 1 4 . Blast 8 | . . . . 2 . . . . . . 3 1 2 . . . . . . Sever 9 | . . . . . . . . . . . . . . . . . 8 1 . Melee Attacks 91 | . . . . . . . . . . . . . . . . . 51 40 . Impact . | . . . . . . . . . . . . . . . . . . . . Slashing 91 | . . . . . . . . . . . . . . . . . 51 40 . Piercing . | . . . . . . . . . . . . . . . . . . . . Sneak Attacks 1 | . . . . . . . . . . . . . . . . . . 1 . Combat Hostiles . | . . . . . . . . . . . . . . . . . . . . Follow-up Attacks 4 | . . . . . . . . . . . . . . . . . . 4 . Damage Inflicted 24133 | . 1004 613 471 2363 . 1217 1035 1475 . . 1415 1164 2322 . 1142 2787 3697 1230 2198 Guns 9979 | . 819 460 174 1089 . 736 534 290 . . 265 507 1859 . 1142 1741 205 158 . Cannons 4211 | . . 153 297 468 . . 418 . . . 1150 657 385 . . 633 50 . . Explosions 7184 | . 179 . . 806 . 481 . 1185 . . . . 78 . . 413 1844 . 2198 Melee 2669 | . . . . . . . . . . . . . . . . . 1598 1071 . Ramming 7 | . 6 . . . . . . . . . . . . . . . . 1 . Kinetic 6688 | . 819 434 174 1263 . 163 176 . . . 1252 657 1160 . 285 50 255 . . Thermal 4499 | . 66 179 297 238 . 265 540 290 . . 25 . . . 495 2104 . . . Explosive 5891 | . . . . 448 . 216 . 1185 . . . . . . . . 1844 . 2198 Electromagnetic 4379 | . 113 . . 414 . 573 319 . . . 138 507 1162 . 362 633 . 158 . Impact . | . . . . . . . . . . . . . . . . . . . . Slashing 2669 | . . . . . . . . . . . . . . . . . 1598 1071 . Piercing . | . . . . . . . . . . . . . . . . . . . . Highest Corruption 24 | . 2 2 2 6 6 6 8 8 . . 2 3 4 4 4 8 10 22 24 Average Corruption 5 | . 1 2 2 4 6 6 6 8 . . 1 2 3 4 4 4 8 19 23 Corruption Purged . | . . . . . . . . . . . . . . . . . . . . Corruption Blocked . | . . . . . . . . . . . . . . . . . . . . Effects 317 | . 11 43 19 25 7 21 31 32 . . . 9 17 7 15 16 15 46 3 Message Errors 79 | . 3 14 3 3 2 2 10 8 . . . 3 4 1 5 4 8 9 . Matter Fused 77 | . 2 10 4 9 3 6 7 9 . . . 3 3 2 2 5 4 7 1 Heat Flow Errors 32 | . 3 5 1 3 1 4 5 1 . . . 1 1 . . 1 1 5 . Energy Discharges 37 | . 2 4 2 4 . 3 2 5 . . . . 2 2 2 3 1 5 . Parts Rejected 5 | . . 1 . . . 2 . . . . . . . . . . 1 1 . Parts Fused 4 | . . 1 . . . 1 . . . . . . 1 . . . . 1 . Data Loss (minor) 35 | . . 2 3 4 . 1 5 4 . . . 1 2 1 3 . . 9 . Data Loss (major) 26 | . . 3 3 2 1 1 1 3 . . . 1 4 . 2 1 . 3 1 Misfires 6 | . . 2 3 . . . . 1 . . . . . . . . . . . Alerts 9 | . 1 1 . . . 1 1 . . . . . . 1 . . . 3 1 Misdirections 2 | . . . . . . . . . . . . . . . . . . 2 . Weapon Failures 5 | . . . . . . . . 1 . . . . . . 1 2 . 1 . Overload Shots . | . . . . . . . . . . . . . . . . . . . . Overflow Damage 479 | . 37 . . 38 . 32 . 25 . . 41 . . . . 35 79 182 10 Projectiles 76 | . . . . . . . . . . . 41 . . . . 35 . . . Explosions 176 | . 37 . . 38 . 32 . 25 . . . . . . . . 34 . 10 Melee 227 | . . . . . . . . . . . . . . . . . 45 182 . Knockbacks 17 | . . 2 . 2 . . . . . . 9 . 4 . . . . . . Impact . | . . . . . . . . . . . . . . . . . . . . Kinetic 17 | . . 2 . 2 . . . . . . 9 . 4 . . . . . . Secondary . | . . . . . . . . . . . . . . . . . . . . Self-Inflicted Damage 606 | . 3 . . 79 . 56 . 189 . . . . 36 . . 154 89 . . Shots 15 | . 1 . . 2 . 2 . 5 . . . . 1 . . 2 2 . . Rammed 1 | . . . . . . . . . . . . . . . . . . 1 . Targets Rammed 4 | . 2 . . . . . . . . . . . . . . . . 2 . Kicked 3 | . 2 . . . . . . . . . . . . . . . . 1 . Crushed . | . . . . . . . . . . . . . . . . . . . . Highest Temperature 528 | . 266 227 315 198 263 257 286 137 . . 432 528 353 . 199 101 199 235 34 Average Temperature 104 | . 60 55 108 37 133 72 88 47 . . 166 169 104 . 82 37 92 104 12 Received Heat Transfer 2115 | . 93 105 . 225 . 206 177 480 . . 27 33 232 . 81 174 264 18 . Effects 13 | . . . . . . . . . . . 4 9 . . . . . . . Shutdowns 5 | . . . . . . . . . . . 2 3 . . . . . . . Energy Bleed 3 | . . . . . . . . . . . 1 2 . . . . . . . Interference 2 | . . . . . . . . . . . . 2 . . . . . . . Matter Decay 1 | . . . . . . . . . . . . 1 . . . . . . . Short Circuit 1 | . . . . . . . . . . . 1 . . . . . . . . Damage (core) 1 | . . . . . . . . . . . . 1 . . . . . . . Siege Activations . | . . . . . . . . . . . . . . . . . . . . Robots Corrupted 7 | . . . . 1 . . . . . . 1 . 1 . . 4 . . . Combat Hostiles 6 | . . . . 1 . . . . . . 1 . 1 . . 3 . . . Parts Fried 20 | . 1 . . 1 . 3 1 . . . 2 . 4 . 1 7 . . . Impact Corruptions . | . . . . . . . . . . . . . . . . . . . . Robots Melted 2 | . . . . . . . 1 1 . . . . . . . . . . . Combat Hostiles 1 | . . . . . . . . 1 . . . . . . . . . . . Parts Melted 19 | . . 1 . . . . 2 4 . . . . . . . 12 . . . Heat Transferred 4923 | . 100 481 407 174 . 300 436 962 . . 74 . . . 74 1915 . . . Parts Sabotaged . | . . . . . . . . . . . . . . . . . . . . Parts Stolen . | . . . . . . . . . . . . . . . . . . . . Parts Stripped . | . . . . . . . . . . . . . . . . . . . . Power Chain Reactions 11 | . 3 . . 2 . 3 . . . . . . 2 . . 1 . . . Alert | -11 -10 -10 -9 -7 -7 -7 -7 -7 -6 -6 -5 -5 -5 -5 -4 -4 -4 -4 -4 ------- Run | Yrd Mat Sub Rec Fac Was Fac Low Low Fac DSF Fac Upp Upp Zhi Pro Fac Upp Upp War Peak Influence 411 | . 151 . 294 333 129 411 . . 23 31 362 . . . . 372 . . . Initial 114 | . . . 26 . 114 90 . . 18 16 16 . . . . . . . . Average 135 | . 37 . 63 180 125 249 . . 18 20 145 . . . . 234 . . . Maximum Alert Level 2 | . . . 1 1 . 2 . . . . 1 . . . . 1 . . . Low Security (%) 66 | . 100 . 90 44 100 44 . . 100 100 72 . . . . 23 . . . Level 1 32 | . . . 9 55 . 44 . . . . 27 . . . . 76 . . . Level 2 1 | . . . . . . 10 . . . . . . . . . . . . . Level 3 . | . . . . . . . . . . . . . . . . . . . . Level 4 . | . . . . . . . . . . . . . . . . . . . . Level 5 . | . . . . . . . . . . . . . . . . . . . . High Security . | . . . . . . . . . . . . . . . . . . . . Max Security . | . . . . . . . . . . . . . . . . . . . . Squads Dispatched 26 | . 1 . . 10 . 5 . 1 . 1 3 . 1 . . 4 . . . Investigation 1 | . 1 . . . . . . . . . . . . . . . . . . Extermination 6 | . . . . 4 . . . . . . . . . . . 2 . . . Reinforcement 9 | . . . . 2 . 3 . . . 1 1 . . . . 2 . . . Assault 4 | . . . . . . 1 . 1 . . 1 . 1 . . . . . . Garrison 6 | . . . . 4 . 1 . . . . 1 . . . . . . . . Intercept . | . . . . . . . . . . . . . . . . . . . . Searches Triggered . | . . . . . . . . . . . . . . . . . . . . Construction Impeded 2 | . . . . 1 . 1 . . . . . . . . . . . . . Haulers Reinforced . | . . . . . . . . . . . . . . . . . . . . Active Scanning Responses . | . . . . . . . . . . . . . . . . . . . . Cargo Convoy Interrupts . | . . . . . . . . . . . . . . . . . . . . Stealth | -11 -10 -10 -9 -7 -7 -7 -7 -7 -6 -6 -5 -5 -5 -5 -4 -4 -4 -4 -4 --------- Run | Yrd Mat Sub Rec Fac Was Fac Low Low Fac DSF Fac Upp Upp Zhi Pro Fac Upp Upp War Distress Signals 6 | . . . . . . 2 . . . . . . . . . 3 . . 1 Communications Jammed . | . . . . . . . . . . . . . . . . . . . . Distress Signals . | . . . . . . . . . . . . . . . . . . . . Times Spotted 224 | . 12 18 2 28 7 13 8 14 . 4 10 7 18 . 7 23 17 18 18 Peak Tracking Total 9 | . 3 3 2 4 6 5 3 8 . 4 2 3 5 . 2 5 9 5 9 Tactical Retreats 17 | . . 1 . 1 1 . 3 . . 1 . 2 2 . 1 3 . 1 1 Traps | -11 -10 -10 -9 -7 -7 -7 -7 -7 -6 -6 -5 -5 -5 -5 -4 -4 -4 -4 -4 ------- Run | Yrd Mat Sub Rec Fac Was Fac Low Low Fac DSF Fac Upp Upp Zhi Pro Fac Upp Upp War Traps Triggered 12 | . 4 2 . 1 . 2 1 . . . . . . . . 1 . . 1 Indirectly 1 | . 1 . . . . . . . . . . . . . . . . . . Trap Hack Attempts . | . . . . . . . . . . . . . . . . . . . . Triggered . | . . . . . . . . . . . . . . . . . . . . Disarmed . | . . . . . . . . . . . . . . . . . . . . Reprogrammed . | . . . . . . . . . . . . . . . . . . . . Reused 1 | . . . . 1 . . . . . . . . . . . . . . . Traps Extracted . | . . . . . . . . . . . . . . . . . . . . Installed 1 | . . . . 1 . . . . . . . . . . . . . . . Triggered 23 | . . . . 1 . . 1 . . . . . 1 . 4 . . . 16 Most Traps Carried 1 | . . 1 1 1 . . . . . . . . . . . . . . . Machines | -11 -10 -10 -9 -7 -7 -7 -7 -7 -6 -6 -5 -5 -5 -5 -4 -4 -4 -4 -4 ---------- Run | Yrd Mat Sub Rec Fac Was Fac Low Low Fac DSF Fac Upp Upp Zhi Pro Fac Upp Upp War Machines Disabled 30 | . 3 2 1 14 . 3 . . . . 2 . . . . 5 . . . Max in Single Turn 5 | . 1 1 1 5 . 2 . . . . 1 . . . . 2 . . . Garrison Access 3 | . . . . . . 1 . . . . 1 . . . . 1 . . . Machines Repaired . | . . . . . . . . . . . . . . . . . . . . Machines Dismantled . | . . . . . . . . . . . . . . . . . . . . Machines Sabotaged . | . . . . . . . . . . . . . . . . . . . . Overloaded Fab Kills . | . . . . . . . . . . . . . . . . . . . . Hacking | -11 -10 -10 -9 -7 -7 -7 -7 -7 -6 -6 -5 -5 -5 -5 -4 -4 -4 -4 -4 --------- Run | Yrd Mat Sub Rec Fac Was Fac Low Low Fac DSF Fac Upp Upp Zhi Pro Fac Upp Upp War Machines Accessed 48 | . 3 2 5 9 . 4 2 . 1 . 3 1 1 7 . 7 . . 3 Terminals 21 | . 2 . 3 5 . 3 . . 1 . 3 . . . . 4 . . . Fabricators 5 | . . . . 3 . 1 . . . . . . . . . 1 . . . Repair Stations 1 | . . . . . . . . . . . . . . . . 1 . . . Recycling Units 3 | . 1 . 2 . . . . . . . . . . . . . . . . Scanalyzers . | . . . . . . . . . . . . . . . . . . . . Garrison Access 2 | . . . . 1 . . . . . . . . . . . 1 . . . Total Hacks 123 | . 6 11 8 12 . 10 2 . 1 . 5 1 1 46 . 11 . . 9 Successful 89 | . 4 11 4 1 . 1 2 . 1 . 2 1 1 46 . 6 . . 9 Failed 34 | . 2 . 4 11 . 9 . . . . 3 . . . . 5 . . . Catastrophic 13 | . . . 1 6 . 1 . . . . 2 . . . . 3 . . . Database Lockouts . | . . . . . . . . . . . . . . . . . . . . Manual 33 | . 6 . 3 8 . 5 . . . . 3 . . . . 6 . . 2 Terminals 34 | . 2 . 5 7 . 7 . . 1 . 5 . . . . 7 . . . Fabricators 7 | . . . . 3 . 3 . . . . . . . . . 1 . . . Repair Stations 2 | . . . . . . . . . . . . . . . . 2 . . . Recycling Units 7 | . 4 . 3 . . . . . . . . . . . . . . . . Scanalyzers . | . . . . . . . . . . . . . . . . . . . . Garrison Access 3 | . . . . 2 . . . . . . . . . . . 1 . . . Terminal Hacks 77 | . 1 11 3 . . . 2 . 1 . 1 1 1 46 . 1 . . 9 Record 46 | . . 10 . . . . . . . . . . . 34 . . . . 2 Part Schematic 4 | . . . . . . . . . . . . . . 4 . . . . . Robot Analysis 4 | . . . . . . . . . . . . . . 4 . . . . . Prototype ID Bank 11 | . . . 1 . . . . . . . . . . 4 . . . . 6 Open Door 5 | . . . . . . . 2 . . . . 1 1 . . . . . 1 Open DSF 1 | . . . . . . . . . 1 . . . . . . . . . . Branch Access Points 2 | . . . . . . . . . . . 1 . . . . 1 . . . Recycling Unit Index 1 | . . . 1 . . . . . . . . . . . . . . . . Hauler Manifests 2 | . 1 . 1 . . . . . . . . . . . . . . . . Derelict Proto ID Bank 1 | . . 1 . . . . . . . . . . . . . . . . . Fabricator Hacks 1 | . . . . 1 . . . . . . . . . . . . . . . Network Status 1 | . . . . 1 . . . . . . . . . . . . . . . Repair Station Hacks 2 | . . . . . . . . . . . . . . . . 2 . . . Scan Component 1 | . . . . . . . . . . . . . . . . 1 . . . Repair 1 | . . . . . . . . . . . . . . . . 1 . . . Recycling Unit Hacks 1 | . . . 1 . . . . . . . . . . . . . . . . Retrieve Components 1 | . . . 1 . . . . . . . . . . . . . . . . Scanalyzer . | . . . . . . . . . . . . . . . . . . . . Garrison Access Hacks 1 | . . . . . . . . . . . . . . . . 1 . . . Seal Access 1 | . . . . . . . . . . . . . . . . 1 . . . Unauthorized Hacks 7 | . 3 . . . . 1 . . . . 1 . . . . 2 . . . Terminals 5 | . 1 . . . . 1 . . . . 1 . . . . 2 . . . Botnet 4 | . . . . . . 1 . . . . 1 . . . . 2 . . . Operators 1 | . 1 . . . . . . . . . . . . . . . . . . Fabricators . | . . . . . . . . . . . . . . . . . . . . Repair Stations . | . . . . . . . . . . . . . . . . . . . . Recycling Units 2 | . 2 . . . . . . . . . . . . . . . . . . Reject 1 | . 1 . . . . . . . . . . . . . . . . . . Mask 1 | . 1 . . . . . . . . . . . . . . . . . . Scanalyzers . | . . . . . . . . . . . . . . . . . . . . Garrison Access . | . . . . . . . . . . . . . . . . . . . . Data Cores Recovered 2 | . . . . . . . . . . . 1 . . . . 1 . . . Used . | . . . . . . . . . . . . . . . . . . . . Hacking Detections 24 | . 1 . 3 8 . 4 . . 1 . 2 . . . . 5 . . . Full Trace Events . | . . . . . . . . . . . . . . . . . . . . Feedback Events . | . . . . . . . . . . . . . . . . . . . . Feedback Blocked . | . . . . . . . . . . . . . . . . . . . . Robot Schematics Acquired . | . . . . . . . . . . . . . . . . . . . . Robots Built . | . . . . . . . . . . . . . . . . . . . . Authchips . | . . . . . . . . . . . . . . . . . . . . Time . | . . . . . . . . . . . . . . . . . . . . Total Robot Build Rating . | . . . . . . . . . . . . . . . . . . . . Part Schematics Acquired 4 | . . . . . . . . . . . . . . 4 . . . . . Parts Built . | . . . . . . . . . . . . . . . . . . . . Authchips . | . . . . . . . . . . . . . . . . . . . . Time . | . . . . . . . . . . . . . . . . . . . . Total Part Build Rating . | . . . . . . . . . . . . . . . . . . . . Parts Repaired 1 | . . . . . . . . . . . . . . . . 1 . . . Time 99 | . . . . . . . . . . . . . . . . 99 . . . Parts Recycled . | . . . . . . . . . . . . . . . . . . . . Recycled Matter . | . . . . . . . . . . . . . . . . . . . . Retrieved Matter . | . . . . . . . . . . . . . . . . . . . . Retrieved Components 2 | . . . 2 . . . . . . . . . . . . . . . . Parts Scanalyzed . | . . . . . . . . . . . . . . . . . . . . Part Schematics Acquired . | . . . . . . . . . . . . . . . . . . . . Parts Damaged . | . . . . . . . . . . . . . . . . . . . . Bothacking | -11 -10 -10 -9 -7 -7 -7 -7 -7 -6 -6 -5 -5 -5 -5 -4 -4 -4 -4 -4 ------------ Run | Yrd Mat Sub Rec Fac Was Fac Low Low Fac DSF Fac Upp Upp Zhi Pro Fac Upp Upp War Used RIF Installer . | . . . . . . . . . . . . . . . . . . . . Robots Hacked . | . . . . . . . . . . . . . . . . . . . . Non-combat . | . . . . . . . . . . . . . . . . . . . . Combat . | . . . . . . . . . . . . . . . . . . . . Robot Hacks Applied . | . . . . . . . . . . . . . . . . . . . . Relay Couplers Released 2 | . . . . . . 2 . . . . . . . . . . . . . Machine Destruction 2 | . . . . . . 2 . . . . . . . . . . . . . Fabnet Peak Effective % . | . . . . . . . . . . . . . . . . . . . . Robots Rewired 4 | . . . 1 . . . . 1 . . . . 2 . . . . . . Allies Hacked . | . . . . . . . . . . . . . . . . . . . . Hacks Repelled . | . . . . . . . . . . . . . . . . . . . . Allies | -11 -10 -10 -9 -7 -7 -7 -7 -7 -6 -6 -5 -5 -5 -5 -4 -4 -4 -4 -4 -------- Run | Yrd Mat Sub Rec Fac Was Fac Low Low Fac DSF Fac Upp Upp Zhi Pro Fac Upp Upp War Total Allies 11 | . . 7 1 . . . . 1 . . . . 2 . . . . . . Largest Group 6 | . . 6 6 4 . . . 1 . . . . 2 2 2 . . . . Highest-Rated Group 114 | . . 114 114 67 . . . 30 . . . . 59 59 59 . . . . Highest-Rated Ally 30 | . . 19 19 19 . . . 30 . . . . 30 30 30 . . . . Total Orders . | . . . . . . . . . . . . . . . . . . . . Ally Attacks 98 | . . 21 48 12 . . . 6 . . . . . . 11 . . . . Total Damage 1536 | . . 247 777 165 . . . 173 . . . . . . 174 . . . . Kills 23 | . . 7 12 1 . . . 1 . . . . . . 2 . . . . Allies Corrupted . | . . . . . . . . . . . . . . . . . . . . Allies Melted 1 | . . . . . . . . . . . . . . . . . . . 1 Intel | -11 -10 -10 -9 -7 -7 -7 -7 -7 -6 -6 -5 -5 -5 -5 -4 -4 -4 -4 -4 ------- Run | Yrd Mat Sub Rec Fac Was Fac Low Low Fac DSF Fac Upp Upp Zhi Pro Fac Upp Upp War Robot Analysis Total 4 | . . . . . . . . . . . . . . 4 . . . . . Derelict Logs Recovered 11 | . . 3 . . . . 1 2 . . . 2 . . 2 . . 1 . Drone Launches 8 | . . . . . . . . . . . . . . . . . . . 8 Drone Recoveries . | . . . . . . . . . . . . . . . . . . . . Exploration | -11 -10 -10 -9 -7 -7 -7 -7 -7 -6 -6 -5 -5 -5 -5 -4 -4 -4 -4 -4 ------------- Run | Yrd Mat Sub Rec Fac Was Fac Low Low Fac DSF Fac Upp Upp Zhi Pro Fac Upp Upp War Turns Passed 19156 | . 1775 3631 1448 1936 178 825 937 923 71 69 864 550 939 258 728 1079 670 1044 1231 Spaces Moved 13605 | 1 953 2104 838 1526 173 900 660 842 30 86 1034 526 617 143 374 697 529 792 780 Core 143 | . . . . 24 . . . 89 28 . . . . . . . 2 . . Treads 4842 | . . 2002 838 23 . . . . . . . 280 617 143 374 175 62 328 . Legs 4148 | 1 953 102 . 149 73 120 533 452 . . . . . . . 343 248 394 780 Wheels 827 | . . . . 414 . 289 124 . . . . . . . . . . . . Hover 1913 | . . . . . 33 332 3 . . . 833 246 . . . 179 217 70 . Flight 1732 | . . . . 916 67 159 . 301 2 86 201 . . . . . . . . Fastest Speed 44 | 120 120 160 160 81 81 50 50 64 64 64 44 71 71 177 177 79 52 114 114 Average Speed 117 | 120 162 161 160 102 89 75 91 93 237 64 64 71 122 177 177 113 87 114 114 Slowest Speed 250 | 120 190 240 160 160 124 102 129 250 250 64 129 71 177 177 177 177 114 114 114 Overloaded Moves . | . . . . . . . . . . . . . . . . . . . . Propulsion Burnouts . | . . . . . . . . . . . . . . . . . . . . Robots Hopped 9 | . . . . 9 . . . . . . . . . . . . . . . Cave-ins Triggered . | . . . . . . . . . . . . . . . . . . . . Teleports 1 | . . . . . . . . . . . . . . . . . . 1 . Exploration Rate (%) 59 | 2 98 94 97 44 100 25 75 71 1 58 19 54 66 62 53 19 89 85 72 Regions Visited 19 Branch Regions 11 Pre-discovered Areas 4 | . . . . . . . . 1 . . . . . 3 . . . . . Known Exits Taken 6 | . . . . . . . . . 1 . 1 1 . . . 1 1 1 . Unknown Exits Taken 10 | 1 1 1 1 . . 1 1 1 . . . . 1 1 1 . . . . Scrap Searched 24 | . . 7 . . . . 2 5 . . . 2 1 . 3 . 2 2 . Spaces Dug 15 | . . 3 . . . . . . . . 2 . . . . 10 . . . Terrain Destroyed 530 | . 8 4 5 56 . 33 . 79 . . 18 2 3 . 7 103 208 . 4 Melee . | . . . . . . . . . . . . . . . . . . . . Projectile 72 | . . 4 5 . . . . . . . 18 2 3 . 7 29 3 . 1 AOE 458 | . 8 . . 56 . 33 . 79 . . . . . . . 74 205 . 3 Terrain Rammed . | . . . . . . . . . . . . . . . . . . . . Walls Destroyed . | . . . . . . . . . . . . . . . . . . . . Machines Disabled . | . . . . . . . . . . . . . . . . . . . . Actions | -11 -10 -10 -9 -7 -7 -7 -7 -7 -6 -6 -5 -5 -5 -5 -4 -4 -4 -4 -4 --------- Run | Yrd Mat Sub Rec Fac Was Fac Low Low Fac DSF Fac Upp Upp Zhi Pro Fac Upp Upp War Total 15884 | . 1110 2266 921 1749 195 999 937 945 29 99 1177 664 716 148 404 891 635 881 1118 Wait 1439 | . 67 59 36 135 23 64 238 53 . 14 95 118 37 . 13 133 18 28 308 Move 13569 | . 952 2103 837 1508 172 899 659 841 29 85 1033 525 616 142 373 696 528 791 780 Hop 9 | . . . . 9 . . . . . . . . . . . . . . . Pick Up 43 | . 18 5 3 4 . 1 . . . . 1 1 1 1 . 1 2 1 4 Fast Attach 57 | . 4 10 . 7 . 5 1 2 . . 4 . . 3 1 3 4 5 8 Attach 17 | . . 3 1 . . . 1 1 . . 1 . . . . . 4 3 3 Detach 10 | . . 2 . 1 . 1 1 . . . . . . . . . 2 1 2 Swap 24 | . 7 8 . 2 . 1 . 1 . . 1 . 1 . . 1 1 1 . Drop 74 | . 14 24 7 6 . 2 1 1 . . 1 . . 2 1 1 3 1 10 Fire 482 | . 46 48 14 76 . 25 36 27 . . 41 20 38 . 16 56 22 14 3 Melee 85 | . . . . . . . . . . . . . . . . . 51 34 . Ram . | . . . . . . . . . . . . . . . . . . . . Kick 3 | . 2 . . . . . . . . . . . . . . . . 1 . Crush 1 | . . . . . . . . . . . . . . . . . . 1 . Escape Stasis 1 | . . . . . . 1 . . . . . . . . . . . . . Rewire 65 | . . . 23 . . . . 19 . . . . 23 . . . . . . Trap 1 | . . . . 1 . . . . . . . . . . . . . . . Miscellaneous 4 | . . 4 . . . . . . . . . . . . . . . . . Route ------- -11/Scrapyard -10/Materials (discovered 5 exits: [*Mat x3] / [*Min] / *Sub) -10/Subcaves (discovered 3 exits: *Mat x2 / *Rec) -9/Recycling -7/Factory -7/Waste -7/Factory -7/Lower Caves -7/Lower Caves -6/Factory (discovered 2 exits: Low / DSF) -6/DSF -5/Factory (discovered 2 exits: *Upp x2) -5/Upper Caves -5/Upper Caves (discovered 2 exits: *Fac / *Zhi) -5/Zhirov -4/Proximity Caves -4/Factory (discovered 4 exits: *Upp x2 / Ext x2) -4/Upper Caves -4/Upper Caves -4/Warlord History --------- Turn | Location | Event 1 | -11/Scrapyard | Discovered new exit (range 0) 1 | -11/Scrapyard | Entered Materials 310 | -10/Materials | Build established: Mutant 403 | -10/Materials | Discovered new exit (range 10) 601 | -10/Materials | Discovered new exit (range 6) 883 | -10/Materials | Discovered new exit (range 12) 1042 | -10/Materials | Discovered new exit (range 5) 1103 | -10/Materials | Discovered new exit (range 10) 1776 | -10/Materials | Entered Subcaves 1879 | -10/Subcaves | Shifting Twisted Machinery released Sub. Machine Gun 1922 | -10/Subcaves | A swath of the cavern ceiling suddenly collapsed 2040 | -10/Subcaves | Lost 3 parts (1p1n1u) 2483 | -10/Subcaves | Visited triangular shrine 2493 | -10/Subcaves | Found Prototype Device 2493 | -10/Subcaves | Identified V3-11A's Pendant 2498 | -10/Subcaves | Befriended Subdweller 2513 | -10/Subcaves | Core integrity fell below 50% 2843 | -10/Subcaves | Learned location of 1 exit from Materials 2859 | -10/Subcaves | Learned Materials terminal intel 3068 | -10/Subcaves | Shifting Twisted Machinery released Sub. Machine Gun 3118 | -10/Subcaves | Befriended Subdweller 3178 | -10/Subcaves | Befriended Subdweller 3273 | -10/Subcaves | Befriended Subdweller 3421 | -10/Subcaves | Shifting Twisted Machinery released Mak. Power Source 3437 | -10/Subcaves | Identified exit to Materials 3503 | -10/Subcaves | Befriended Subdweller 3643 | -10/Subcaves | Befriended Subdweller 3643 | -10/Subcaves | Befriended Subdweller 3653 | -10/Subcaves | Discovered new exit (range 16) 4351 | -10/Subcaves | A swath of the cavern ceiling suddenly collapsed 4597 | -10/Subcaves | Build established: Derelict-Mutant 4637 | -10/Subcaves | Visited Clippyterm 4664 | -10/Subcaves | Shifting Twisted Machinery released Mak. Light Armor Plating 4700 | -10/Subcaves | Discovered exit to Materials (range 5) 4768 | -10/Subcaves | Shifting Twisted Machinery released Riot Gun 5005 | -10/Subcaves | Visited 4L-MR0's lab 5024 | -10/Subcaves | Found Meta Core 5407 | -10/Subcaves | Entered Recycling 5407 | -9/Recycling | Accompanied by 6 allies 5421 | -9/Recycling | Found Scrap Engine 5999 | -9/Recycling | Build established: Mutant 6336 | -9/Recycling | Discovered new exit (range 15) 6555 | -9/Recycling | Build established: Construct 6855 | -9/Recycling | Entered Factory 6855 | -7/Factory | Accompanied by 4 allies 6855 | -7/Factory | Evolved 6 slots: Propulsion x3, Utility x3 6953 | -7/Factory | Lost 4 allies 7077 | -7/Factory | Garrison activated, responded to threat 7144 | -7/Factory | Lost 3 parts (1p1n1w) 7149 | -7/Factory | Build established: Mutant 7377 | -7/Factory | Garrison activated, responded to threat 7450 | -7/Factory | Build established: Construct 8791 | -7/Factory | Manually triggered Chute Trap 8791 | -7/Factory | Sucked down chute 8791 | -7/Factory | Entered Waste 8798 | -7/Waste | Spotted C-40 Crusher 8816 | -7/Waste | Spotted C-40 Crusher 8829 | -7/Waste | Spotted C-40 Crusher 8831 | -7/Waste | Spotted C-40 Crusher 8865 | -7/Waste | Spotted C-40 Crusher 8899 | -7/Waste | Spotted C-40 Crusher 8957 | -7/Waste | Discovered new exit (range 11) 8969 | -7/Waste | Entered Factory 9334 | -7/Factory | Garrison activated, responded to threat 9356 | -7/Factory | Core integrity fell below 50% 9788 | -7/Factory | Discovered new exit (range 11) 9794 | -7/Factory | Entered Lower Caves 9970 | -7/Lower Caves | Attracted the attention of an 0b10 checkpoint 10448 | -7/Lower Caves | Discovered new exit (range 10) 10663 | -7/Lower Caves | Learned Factory trap positions 10731 | -7/Lower Caves | Entered another Lower Caves area 10977 | -7/Lower Caves | Learned location of 1 exit from Factory 10991 | -7/Lower Caves | Learned location of Extension (-4) 11021 | -7/Lower Caves | Attracted the attention of an 0b10 checkpoint 11441 | -7/Lower Caves | Attracted the attention of an 0b10 outpost 11492 | -7/Lower Caves | Destroyed 9 combat bots 11495 | -7/Lower Caves | Core integrity fell below 20% 11525 | -7/Lower Caves | Lost 4 parts (1p2n1w) 11614 | -7/Lower Caves | Discovered new exit (range 15) 11654 | -7/Lower Caves | Entered Factory 11654 | -6/Factory | Evolved 2 slots: Power x1, Propulsion x1 11655 | -6/Factory | Identified exit to Lower Caves 11656 | -6/Factory | Loaded intel: 69 trap records 11724 | -6/Factory | Identified exit to DSF 11725 | -6/Factory | Entered DSF 11775 | -6/DSF | Additional patrols routed to DSF 11784 | -6/DSF | Discovered new exit (range 16) 11794 | -6/DSF | Entered Factory 11794 | -5/Factory | Evolved 2 slots: Propulsion x1, Utility x1 11795 | -5/Factory | Attached Meta Core, gained temporary slots: Propulsion, Utility, Weapon 12133 | -5/Factory | Build established: Gunner 12301 | -5/Factory | Identified exit to Upper Caves 12602 | -5/Factory | Garrison activated, responded to threat 12658 | -5/Factory | Entered Upper Caves 12718 | -5/Upper Caves | Learned Factory stockpile data 12721 | -5/Upper Caves | Identified exit to Upper Caves 12772 | -5/Upper Caves | Attracted the attention of an 0b10 checkpoint 12817 | -5/Upper Caves | Spotted B-75 Beast 13067 | -5/Upper Caves | Destroyed B-75 Beast 13088 | -5/Upper Caves | Build established: Construct 13208 | -5/Upper Caves | Entered another Upper Caves area 13363 | -5/Upper Caves | Discovered new exit (range 12) 13576 | -5/Upper Caves | Attracted the attention of an 0b10 checkpoint 13609 | -5/Upper Caves | Attracted the attention of an 0b10 outpost 13632 | -5/Upper Caves | Destroyed 7 combat bots 13828 | -5/Upper Caves | Discovered new exit (range 3) 14147 | -5/Upper Caves | Entered Zhirov 14147 | -5/Zhirov | Accompanied by 2 allies 14147 | -5/Zhirov | Discovered new exit (range 3) 14179 | -5/Zhirov | Met Zhirov 14213 | -5/Zhirov | Learned location of Testing (-3) 14213 | -5/Zhirov | Learned location of Quarantine (-2) 14213 | -5/Zhirov | Learned location of Command (-1) 14252 | -5/Zhirov | Zhirov requested help retrieving the SGEMP Prototype 14279 | -5/Zhirov | Found Alien Artifact 14299 | -5/Zhirov | Found Alien Artifact 14299 | -5/Zhirov | Identified Integrated Reactor 14299 | -5/Zhirov | Installed Integrated Reactor, increased core energy generation (+10) 14405 | -5/Zhirov | Entered Proximity Caves 14405 | -4/Proximity Caves | Accompanied by 2 allies 14527 | -4/Proximity Caves | Attracted the attention of an 0b10 checkpoint 14554 | -4/Proximity Caves | Learned 12 Research zone layouts 14837 | -4/Proximity Caves | Learned location of 1 exit from Upper Caves 15062 | -4/Proximity Caves | Discovered new exit (range 4) 15133 | -4/Proximity Caves | Entered Factory 15133 | -4/Factory | Evolved 2 slots: Utility x2 15675 | -4/Factory | Repaired Particle Accelerator 15777 | -4/Factory | Found Prototype Processor 15777 | -4/Factory | Identified Exp. Signal Interpreter 15968 | -4/Factory | Identified exit to Upper Caves 15968 | -4/Factory | Identified exit to Extension 16212 | -4/Factory | Entered Upper Caves 16213 | -4/Upper Caves | Identified exit to Upper Caves 16310 | -4/Upper Caves | Lost 4 parts (1p2u1w) 16470 | -4/Upper Caves | Build established: Mutant 16550 | -4/Upper Caves | Attracted the attention of an 0b10 outpost 16653 | -4/Upper Caves | System corruption reached 10% 16690 | -4/Upper Caves | Lost 3 parts (1n2u) 16703 | -4/Upper Caves | Destroyed 8 combat bots 16793 | -4/Upper Caves | Attracted the attention of an 0b10 checkpoint 16882 | -4/Upper Caves | Entered another Upper Caves area 16962 | -4/Upper Caves | Learned location of 1 exit from Research 17099 | -4/Upper Caves | Core integrity fell below 50% 17102 | -4/Upper Caves | Spotted B-86 Titan 17173 | -4/Upper Caves | Lost 3 parts (1n1u1w) 17404 | -4/Upper Caves | Identified Transdimensional Reconstructor 17404 | -4/Upper Caves | Warped through subspace 17405 | -4/Upper Caves | Core integrity fell below 20% 17867 | -4/Upper Caves | Attracted the attention of an 0b10 checkpoint 17915 | -4/Upper Caves | Discovered new exit (range 11) 17925 | -4/Upper Caves | Identified exit to Warlord 17926 | -4/Upper Caves | Entered Warlord 17966 | -4/Warlord | System corruption cleaned by Quarantine Array 18212 | -4/Warlord | Visited the Vortex Lab 18217 | -4/Warlord | Warlord's base attacked by MAIN.C 18225 | -4/Warlord | Found Prototype Energy Cannon 18225 | -4/Warlord | Identified Vortex Driver 18227 | -4/Warlord | Found Vortex Driver 18303 | -4/Warlord | Found Prototype Device 18303 | -4/Warlord | Identified Minesniffer Drone Bay 18306 | -4/Warlord | Found Minesniffer Drone Bay 18308 | -4/Warlord | Found Minesniffer Drone Bay 18311 | -4/Warlord | Found Minesniffer Drone Bay 18373 | -4/Warlord | Met Warlord 18567 | -4/Warlord | Warlord forces counterattacked 18822 | -4/Warlord | Spotted Striker 18892 | -4/Warlord | Warlord base infiltrated, sounded retreat 19070 | -4/Warlord | Found Prototype Launcher 19078 | -4/Warlord | Identified Chain Missile Launcher 19080 | -4/Warlord | Spotted Striker 19097 | -4/Warlord | Spotted Striker 19101 | -4/Warlord | Destroyed ID-CT7(K) 19140 | -4/Warlord | Lost 17 allies 19157 | -4/Warlord | Destroyed by D-63 Destroyer with Heavy Rocket Launcher Last Messages --------------- 19153_ Minesniffer Drone released from Minesniffer Drone Bay. 19153_ Minesniffer Drone released from Minesniffer Drone Bay. 19153_ Minesniffer Drone destroyed. 19153_ HV Slug penetrates D-63 Destroyer. 19153_ Penetrated by Slug. 19154_ Minesniffer Drone released from Minesniffer Drone Bay. 19154_ Minesniffer Drone released from Minesniffer Drone Bay. 19155_ Minesniffer Drone released from Minesniffer Drone Bay. 19155_ Minesniffer Drone released from Minesniffer Drone Bay. 19155_ Vortex penetrates Earth. 19155_ Minesniffer Drone destroyed. 19156_ D-63 Destroyer destroyed. 19156_ HV Slug penetrates D-63 Destroyer. 19156_ Penetrated by Slug. Map ----- +----------------------------------------------------+ | # """ #??????????????????????????? | | # # ^ #??????????????????????????? | | % %% #??????????????????????????? | | % ! % ##############??????????????????? | | % % #??# #??????????????????? | | + #???# #??????????????????? | | # = # # ##???# #??????????????????? | | % # ##### #??????????????????? | | ## % # % + #??????????????????? | | #" " # # #??????????????????? | | ## "" #??????????????????? | | #### """ # ### #??????????????????? | | ???# # # ##;###+#####??????????????????? | | ???# # ##????????????????????? | | ???# % #????????????????????? | | ???###+#+##### ##????????????????????? | | ????????????# ##????????????????????? | | ?????# #### #????????????????????? | | ?????# ^ ^ ###???????????????????? | | ?????+ ^ # ##???""?????????????? | | ?????# """"" ! # ##?#""#????????????? | | ?????+ """" !YY #?#""#????????????? | | ?????# ^^""" ###""#####????????? | | ?????#[ W ! ""! "########## | | ?????#%= % "" """"""""""" | | ?????#+#+## """ = @ * % """"""""" | | ??????????# """ % =%!d% | | ??????????# """ = = %%% % | | ???????????? = ! ! | | ??????????# [%* % | | ???????????####+##### ! ]="" """""""""" | | ????????????????????# / ""!= """""""""" | | ????????????????????# ="" "########## | | ????????????????????#### ""#####????????? | | ???????????????????????# # ""#????????????? | | ??#######?????????????# #######""#????????????? | | ??#"""""#?????????????## #??????""?????????????? | | ?##"""""#??????????????# #?????????????????????? | | ## " ""#?????????????? ?????????????????????? | | # """#?????????????# ?????????????????????? | | + " ""#?????????????# ?????????????????????? | | ##"""""#?????????????? ?????????????????????? | | ##"""""#????????????????????????????????????????? | | ########????????????????????????????????????????? | | #???????????????????????????????????????????????? | | +##########??????????????????????????????????????? | | #??????????????????????????????????????? | | #??????????????????????????????????????? | | #??????????????????????????????????????? | | #??????????????????????????????????????? | +----------------------------------------------------+ Best States ------------- Heat Dissipation 74 Coolant Potential 65 Energy Generation 44 Energy Capacity 814 Matter Stores 300 Matter Capacity 300 Sight Range 16 Robot Scan Range 15 Terrain Scan Density 10 Armor Coverage 800 Weapon Cycling 15 Evasion (%) 60 Targeting Accuracy 8 Launcher Accuracy 80 Target Analysis 6 Core Analysis 6 Armor Integrity Analysis 30 Recoil Reduction 5 Matter Filtering 50 Particle Charging 30 Salvage Targeting 4 Item Schematics ----------------- Assault Drone Bay | -5/Zhirov | Free Exp. Heat Sink | -5/Zhirov | Free Exp. Optical Array | -5/Zhirov | Free Imp. Arc Thrower | -5/Zhirov | Free Robot Schematics ------------------ None Fabricated ------------ Nothing Alien Tech Used ----------------- Integrated Reactor Transdimensional Reconstructor Achievements -------------- None Challenges ------------ None Game ------ Seed MassHybridPenetrator Manual? 0 Play Time 02:14:54 Cumulative 177.3 hours Start 2024.03.22 @ 10:50:52 End 2024.03.22 @ 13:11:40 Sessions 1 Manual Loads 0 Difficulty Rogue Special Mode None Game No. 186 Rogue 186 Adventurer 0 Explorer 0 Win Type - Total 1 Types 1/0/0/0/0/0/0/0/0 Lore% 57 Gallery% 73 Achievement% 57 Wizard Run 0 Options --------- Layout 1 ASCII 0 Keyboard 0 Movement Numpad Keybinds 0 Fullscreen 1 Font 24/Smallcaps Map View 50x35 Zoom Use 0% Tactical HUD 1 Map Filters NONE Filters NONE Steam 1 RUN: be7cdd4c-dda4-4b3c-9d18-c6ab4dce8bf5